[Event "3rd HoliCup Lake City 2019"]
[Site "Udaipur"]
[Date "2019.03.31"]
[Round "7.12"]
[White "Vikramaditya, Mukhija"]
[Black "Ayush, Jha"]
[Result "0-1"]
[ECO "A84"]
[WhiteElo "1627"]
[BlackElo "1861"]
[Annotator "NA RC"]
[PlyCount "65"]
[EventDate "2019.??.??"]
[EventCountry "IND"]
[SourceTitle "playchess.com"]
[Source "ChessBase"]
[SourceQuality "1"]
[TimeControl "5400+30"]

{[%evp 18,65,35,42,0,8,17,0,0,7,0,18,13,17,37,39,60,58,158,104,104,97,102,104,124,122,199,74,127,74,79,75,88,77,126,-182,115,-225,-275,-668,-761,-964,-980,-29993,-120,-29994,-29995,-29995,-29996,-29999]} 1. d4 {[%emt 0:04:12]} f5 {[%emt 0:00:00]} 2. c4 {[%emt 0:00:58]} Nf6 {[%emt 0:00:00]} 3. Nf3 {[%emt 0:00:31]} e6 {[%emt 0:00:00]} 4. g3 {[%emt 0:00:39]} c6 {[%emt 0:00:08]} 5. Bg2 {[%emt 0:01:13]} d5 {[%emt 0:00:07]} 6. O-O {[%emt 0:00:36]} Bd6 {[%emt 0:00:14]} 7. Nc3 {[%emt 0:05:04]} O-O {[%emt 0:00:28]} 8. Qc2 {[%emt 0:03:17]} b6 {[%emt 0:06:44] A90: Dutch Defence: Miscellaneous and Modern Stonewall (with ...Bd6)} (8... Qe7 9. Rb1 Bd7 10. c5 Bc7 11. b4 Ne4 12. Nxe4 fxe4 13. Bg5 Qf7 14. Ne5 Bxe5 15. dxe5 Be8 16. f3 Nd7 17. fxe4 {½-½ (48) Wojtaszek,R (2750)-Sadzikowski,D (2588) Warsaw 2018}) 9. Rd1 {[%emt 0:03:20]} Qc7 {[%emt 0:05:51]} 10. Ne5 {[%emt 0:05:10]} Nbd7 {[%emt 0:03:56]} 11. f4 $146 {[%emt 0:02:32]} ({Predecessor:} 11. Nd3 Bb7 12. b3 Rac8 13. e3 g5 14. a4 a6 15. Qa2 Ne4 {0-1 (62) Veltkamp,G (2183)-Bronowicki,M (2370) Krakow 2009}) 11... Bb7 {[%emt 0:03:44]} 12. cxd5 {[%emt 0:04:07]} cxd5 {[%emt 0:03:24]} 13. Qb3 {[%emt 0:01:37]} a6 {[%emt 0:04:11]} 14. Bd2 {[%emt 0:01:37]} b5 {[%emt 0:01:35]} 15. Rdc1 {[%emt 0:03:40]} Qb6 {[%emt 0:01:04]} 16. e3 {[%emt 0:00:26]} Rac8 {[%emt 0:05:21]} 17. a4 {[%emt 0:04:14]} b4 {[%emt 0:12:52]} (17... bxa4 $14 18. Qxa4 Rfd8) 18. a5 {[%emt 0:00:37]} Qd8 {[%emt 0:00:49]} 19. Ne2 {[%emt 0:00:21]} Qe7 {[%emt 0:01:28]} 20. Ra4 {[%emt 0:01:55]} Ne4 {[%emt 0:02:53]} 21. Bxb4 {[%emt 0:01:39]} Nxe5 {[%emt 0:03:37]} (21... Rxc1+ $16 {might work better.} 22. Nxc1 Rc8) 22. fxe5 {[%emt 0:05:48]} (22. Rxc8 $18 Rxc8 23. fxe5 (23. dxe5 Bc5 $16) 23... Bxb4 24. Rxb4 (24. Qxb4 Qd7 $16)) 22... Bxb4 {[%emt 0:04:14]} 23. Qxb4 {[%emt 0:03:27]} Rxc1+ {[%emt 0:01:48]} 24. Nxc1 {[%emt 0:00:06]} Qg5 {[%emt 0:00:08]} 25. Ra3 {[%emt 0:05:57]} Qg4 {[%emt 0:02:37]} 26. Qxb7 $2 {[%emt 0:07:57]} (26. Qe1 $16 {and life is bright.}) 26... Qd1+ {[%emt 0:02:38]} 27. Bf1 {[%emt 0:00:27]} Qxc1 {[%emt 0:05:45]} 28. Qxa6 $2 {[%emt 0:06:24]} (28. Qb6 Kh8 29. Qxa6 Qxb2 30. Qd3) 28... Qxb2 {[%emt 0:03:28]} 29. Qd3 {[%emt 0:06:18]} Rc8 {[%emt 0:04:32]} 30. Qa6 {[%emt 0:02:55]} Qf2+ {[%emt 0:05:29]} 31. Kh1 {[%emt 0:00:05]} Rc2 {[%emt 0:01:25]} 32. Qxe6+ {[%emt 0:02:13]} Kf8 {[%emt 0:00:06]} 33. Ra1 0-1

[Event "3rd HoliCup Lake City 2019"]
[Site "Udaipur"]
[Date "2019.03.31"]
[Round "7.13"]
[White "Yogesh, Bharat Mahamuni"]
[Black "Chudasama, Ankit"]
[Result "0-1"]
[ECO "B96"]
[WhiteElo "1455"]
[BlackElo "1853"]
[Annotator "NA RC"]
[PlyCount "80"]
[EventDate "2019.??.??"]
[EventCountry "IND"]
[SourceTitle "playchess.com"]
[Source "ChessBase"]
[SourceQuality "1"]
[TimeControl "5400+30"]

{[%evp 26,80,-22,-93,-88,-98,-124,-93,-68,-111,-94,-202,-199,-204,-206,-262,-234,-328,32767,32767,-309,-449,-438,-436,-426,-434,-446,-445,-260,-465,-591,-530,-565,-672,-755,-714,-744,-789,-855,-770,-816,-1042,-1589,-1209,-1640,-1428,-1179,-29972,-1319,-1554,-11699,-4758,-552,-1831,-29971,-6306,-29968]} 1. e4 {[%emt 0:00:00]} c5 {[%emt 0:00:23]} 2. Nf3 {[%emt 0:00:00]} d6 {[%emt 0:00:03]} 3. d4 {[%emt 0:00:00]} cxd4 {[%emt 0:00:03]} 4. Nxd4 {[%emt 0:00:00]} Nf6 {[%emt 0:00:04]} 5. Nc3 {[%emt 0:00:03]} a6 {[%emt 0:00:03]} 6. Bg5 {[%emt 0:00:06]} e6 {[%emt 0:00:07]} 7. f4 {[%emt 0:00:07]} h6 {[%emt 0:00:05] B96: Sicilian Najdorf: 6 Bg5 e6 7 f4, lines other than 7...Qb6 and 7...Be7} (7... Nbd7 8. Qe2 h6 9. Bh4 e5 10. fxe5 dxe5 11. Nf5 Nb6 12. Qf3 Bxf5 13. Qxf5 Be7 14. Bd3 Nfd7 15. Bxe7 Qxe7 16. O-O-O O-O 17. Kb1 Nc5 18. Be2 Rad8 19. Qf2 Qc7 20. Qe3 Qc6 21. Rhe1 Rfe8 22. a3 Kf8 {½-½ (22) Anand,V (2773)-Nepomniachtchi,I (2763) Wijk aan Zee 2019}) 8. Bxf6 {[%emt 0:01:41]} gxf6 {[%emt 0:01:25]} 9. Qd2 {[%emt 0:09:16]} Bd7 {[%emt 0:00:19]} 10. f5 $146 {[%emt 0:01:21]} Nc6 {[%emt 0:00:45]} 11. fxe6 {[%emt 0:00:39]} fxe6 {[%emt 0:00:21]} 12. Be2 {[%emt 0:08:10]} h5 {[%emt 0:00:45]} 13. Qd1 {[%emt 0:02:15] [#]} Qa5 {[%emt 0:03:53]} ({Better is} 13... Qb6 $1 $17 14. Bxh5+ Kd8 15. Nxc6+ Bxc6) 14. Bc4 {[%emt 0:11:16]} (14. Nxc6 $11 Bxc6 15. Qd3) 14... Qe5 {[%emt 0:06:33]} 15. Nf3 {[%emt 0:01:59]} Qc5 {[%emt 0:00:58]} 16. Qe2 {[%emt 0:01:22]} b5 {[%emt 0:02:06]} 17. Bd3 {[%emt 0:02:55]} Bh6 {[%emt 0:12:11]} 18. e5 {[%emt 0:06:03]} (18. Nd1 $17) 18... Nxe5 {[%emt 0:10:55]} ({Resist} 18... dxe5 19. Ne4 $15) 19. Nxe5 {[%emt 0:00:51]} Qxe5 {[%emt 0:01:13]} 20. Qxe5 {[%emt 0:00:32]} dxe5 {[%emt 0:00:20]} 21. Bg6+ {[%emt 0:00:05]} Ke7 {[%emt 0:00:19]} 22. Bxh5 {[%emt 0:00:07]} b4 {[%emt 0:07:11]} 23. Ne4 {[%emt 0:08:51]} (23. Nd1 {was worth a try.}) 23... f5 {[%emt 0:01:26]} 24. Nf2 {[%emt 0:05:14]} Bf4 {[%emt 0:01:44]} 25. Be2 {[%emt 0:01:53]} Bxh2 {[%emt 0:04:33]} 26. a3 {[%emt 0:18:26]} Bg3 {[%emt 0:08:58]} 27. Rh3 $2 {[%emt 0:01:19]} (27. Kf1 {is a better defense.} a5 28. Rxh8 Rxh8 29. axb4 axb4 30. Ra7) 27... Rxh3 {[%emt 0:01:00] Pin} 28. gxh3 {[%emt 0:00:24]} Rc8 {[%emt 0:00:24]} 29. Bd1 {[%emt 0:06:26]} e4 {[%emt 0:00:57]} 30. Kf1 {[%emt 0:00:30]} Bb5+ {[%emt 0:00:24]} 31. Kg2 {[%emt 0:00:43]} Be5 {[%emt 0:00:20]} 32. axb4 {[%emt 0:04:07]} Rg8+ {[%emt 0:00:06]} 33. Kh1 {[%emt 0:00:34]} e3 {[%emt 0:01:33]} 34. Ng4 {[%emt 0:05:32]} fxg4 {[%emt 0:00:12]} 35. Bxg4 {[%emt 0:00:16]} Bxb2 {[%emt 0:00:41]} 36. Re1 {[%emt 0:00:38]} Bd4 {[%emt 0:03:58]} 37. c3 {[%emt 0:00:05]} Bc6+ {[%emt 0:00:34]} 38. Kh2 {[%emt 0:01:10]} Be5+ {[%emt 0:00:05]} 39. Kg1 {[%emt 0:00:17]} Bxc3 {[%emt 0:00:04] Double Attack} 40. Rc1 {[%emt 0:02:23]} e2 {[%emt 0:00:17]} 0-1

[Event "3rd HoliCup Lake City 2019"]
[Site "Udaipur"]
[Date "2019.03.31"]
[Round "7.14"]
[White "Dubey, Sanchay"]
[Black "Dhiraj, Patil"]
[Result "0-1"]
[ECO "B01"]
[WhiteElo "1828"]
[BlackElo "1425"]
[Annotator "NA RC"]
[PlyCount "128"]
[EventDate "2019.??.??"]
[EventCountry "IND"]
[SourceTitle "playchess.com"]
[Source "ChessBase"]
[SourceQuality "1"]
[TimeControl "5400+30"]

{[%evp 19,125,3,72,79,77,29,47,43,44,40,47,35,42,16,10,0,5,6,0,0,5,-27,0,-20,-15,-15,0,-10,8,-10,0,-15,-16,-14,-9,-18,-12,-17,0,0,0,0,0,0,0,7,0,0,0,0,0,0,17,45,19,0,0,0,0,0,0,11,84,0,0,0,0,0,0,0,0,0,0,0,0,-74,-104,-109,-92,-134,-129,-142,-135,-143,-129,-133,0,-133,-137,-127,-149,-131,-107,-144,-112,-142,-133,-337,-169,-154,-156,-170,-164,-163,-159,-150,32767,-29978]} 1. e4 {[%emt 0:00:00]} d5 {[%emt 0:00:00]} 2. exd5 {[%emt 0:00:00]} Nf6 {[%emt 0:00:00]} 3. Nf3 {[%emt 0:00:00]} Qxd5 {[%emt 0:00:00]} 4. Nc3 {[%emt 0:00:00]} Qd8 {[%emt 0:01:53]} 5. Bc4 {[%emt 0:00:42]} Nc6 {[%emt 0:01:25]} (5... a6 6. a4 Nc6 7. h3 Bf5 8. d3 h6 9. g4 Bg6 10. Bf4 e6 11. Ne5 Nxe5 12. Bxe5 Bd6 13. Qe2 Bxe5 14. Qxe5 {1-0 (44) Kamsky,G (2677)-Bartholomew,J (2477) Reykjavik 2018}) 6. d4 {[%emt 0:03:17] B01: Scandinavian Defence} Bg4 {[%emt 0:02:07]} 7. Be3 {[%emt 0:00:48]} e6 {[%emt 0:01:48]} 8. h3 {[%emt 0:08:22]} Bh5 {[%emt 0:00:46]} 9. a3 {[%emt 0:05:59]} Be7 $146 {[%emt 0:00:40]} ({Predecessor:} 9... a6 10. Qe2 Nd5 11. Nxd5 exd5 12. Bd3 Be7 13. O-O-O {1-0 (34) Shamilov,E-Long,H Vancouver 2002}) 10. Bb5 {[%emt 0:07:32]} Bxf3 {[%emt 0:02:53]} (10... O-O $11 {keeps the balance.}) 11. Qxf3 {[%emt 0:00:22]} Qd7 {[%emt 0:00:19]} 12. g4 {[%emt 0:06:57]} Nd5 {[%emt 0:03:54]} 13. Nxd5 {[%emt 0:00:51]} Qxd5 {[%emt 0:01:10]} 14. Qxd5 {[%emt 0:00:17]} exd5 {[%emt 0:00:06]} 15. O-O-O {[%emt 0:09:21]} O-O-O {[%emt 0:01:05]} 16. Bxc6 {[%emt 0:03:01]} bxc6 {[%emt 0:00:07]} 17. a4 {[%emt 0:04:08]} Bh4 {[%emt 0:00:34]} 18. Rhg1 {[%emt 0:01:14]} h6 {[%emt 0:01:10]} 19. Rd3 {[%emt 0:03:13]} Rhe8 {[%emt 0:00:54]} 20. Kd2 {[%emt 0:01:48]} Re6 {[%emt 0:00:37]} 21. b4 {[%emt 0:08:07]} Rde8 {[%emt 0:00:19]} 22. Ke2 {[%emt 0:02:52]} a6 {[%emt 0:01:28]} 23. Kf3 {[%emt 0:04:50]} g5 {[%emt 0:07:28]} 24. Rd2 {[%emt 0:04:52]} Re4 {[%emt 0:03:17]} 25. Re2 {[%emt 0:02:46] [#]} f5 $1 {[%emt 0:06:14]} 26. gxf5 {[%emt 0:00:12]} Rf8 {[%emt 0:00:08]} 27. Ree1 {[%emt 0:12:02]} Rxf5+ {[%emt 0:00:27]} 28. Kg2 {[%emt 0:00:04]} h5 {[%emt 0:02:33]} 29. f3 {[%emt 0:02:04]} Re7 {[%emt 0:00:22]} 30. Bf2 {[%emt 0:00:19]} Bxf2 {[%emt 0:03:10]} 31. Kxf2 {[%emt 0:00:04]} Ref7 {[%emt 0:00:30]} 32. Re3 {[%emt 0:01:11]} Kd7 {[%emt 0:01:09]} 33. Ke2 {[%emt 0:02:00]} Kd6 {[%emt 0:00:54]} 34. c3 {[%emt 0:01:08]} R7f6 {[%emt 0:00:20]} 35. Rg3 {[%emt 0:01:28]} Re6 {[%emt 0:02:39]} 36. Rxe6+ {[%emt 0:04:08]} Kxe6 {[%emt 0:00:08]} 37. h4 {[%emt 0:01:30]} Kf6 {[%emt 0:01:09]} 38. hxg5+ {[%emt 0:00:56]} Rxg5 {[%emt 0:00:08]} 39. Rh3 $1 {[%emt 0:00:23]} Kg6 {[%emt 0:00:25]} 40. Kf2 {[%emt 0:00:30]} Kf5 {[%emt 0:01:41]} (40... Kh6 $11) 41. Rh4 {[%emt 0:00:12]} ({White should try} 41. Rh1 $16) 41... Kg6 $1 {[%emt 0:00:22]} 42. f4 {[%emt 0:00:54]} Rf5 {[%emt 0:00:42]} 43. Ke3 {[%emt 0:00:15]} Rf7 {[%emt 0:00:16]} 44. Rh1 {[%emt 0:00:25]} Rh7 {[%emt 0:00:20]} 45. Kf3 {[%emt 0:00:21]} Kf5 {[%emt 0:00:11]} 46. Rh4 {[%emt 0:01:01]} Rh6 {[%emt 0:00:45]} 47. Rh1 {[%emt 0:00:24]} (47. Ke3 $11) 47... h4 {[%emt 0:00:18]} 48. Rh3 {[%emt 0:00:34]} Rh5 {[%emt 0:00:09]} 49. a5 {[%emt 0:00:09]} Rh7 {[%emt 0:00:33]} 50. Rh2 {[%emt 0:00:31]} h3 {[%emt 0:00:10]} 51. Kg3 {[%emt 0:00:20]} Rh6 {[%emt 0:01:51]} 52. Kf3 {[%emt 0:01:01]} Rh7 {[%emt 0:01:15]} (52... Rh8 $17 53. Kg3 Rh7) 53. Kg3 {[%emt 0:00:12]} Ke4 {[%emt 0:05:20]} 54. Re2+ {[%emt 0:00:49]} Kd3 {[%emt 0:00:12] Double Attack} 55. Rh2 {[%emt 0:00:30]} Kxc3 {[%emt 0:01:56]} 56. Rxh3 {[%emt 0:00:04]} Rxh3+ {[%emt 0:01:52]} 57. Kxh3 {[%emt 0:00:01]} Kxd4 {[%emt 0:00:08]} 58. Kg4 $2 {[%emt 0:00:08]} (58. f5 Ke5 59. Kg4) 58... Ke4 {[%emt 0:03:48]} 59. f5 {[%emt 0:00:01] [#]} d4 $1 {[%emt 0:01:05]} 60. f6 {[%emt 0:00:01]} d3 {[%emt 0:00:20]} 61. f7 $19 {[%emt 0:00:10]} d2 {[%emt 0:00:32]} 62. f8=Q {[%emt 0:01:42]} d1=Q+ {[%emt 0:00:09]} 63. Kh3 $2 {[%emt 0:01:19]} (63. Kg5 $19 Qd5+ 64. Kh4) 63... Qf3+ {[%emt 0:00:39]} 64. Qxf3+ {[%emt 0:00:08]} Kxf3 {[%emt 0:00:09]} 0-1

[Event "3rd HoliCup Lake City 2019"]
[Site "Udaipur"]
[Date "2019.03.31"]
[Round "7.16"]
[White "Rathore, S.K."]
[Black "Falgun, D Purohit"]
[Result "1-0"]
[ECO "B11"]
[WhiteElo "2092"]
[BlackElo "1727"]
[Annotator "NA RC"]
[PlyCount "146"]
[EventDate "2019.??.??"]
[EventCountry "IND"]
[SourceTitle "playchess.com"]
[Source "ChessBase"]
[SourceQuality "1"]
[TimeControl "5400+30"]

{[%evp 18,146,-21,-22,-23,-48,-38,-43,-8,-24,-4,-6,-8,-31,18,15,5,20,8,4,30,1,12,10,12,0,0,0,7,0,32,9,12,8,0,-6,-4,0,0,-780,31,15,65,34,56,32767,32767,32767,32767,32767,32767,32767,32767,32767,32767,32767,32767,32767,32767,32767,32767,32767,18,0,0,0,0,0,0,0,0,0,0,0,0,0,0,0,0,0,0,0,4,3,8,32767,32767,32767,32767,32767,8,0,18,10,77,13,28,19,325,427,576,572,580,1891,693,581,1023,1172,1273,677,472,1608,786,2217,1056,4772,3080,5576,29973,29978,29988,29977,29976,29985,29985,29986,29990,29990,29991,29991,29991]} 1. e4 {[%emt 0:00:00]} c6 {[%emt 0:00:00]} 2. Nc3 {[%emt 0:00:10]} d5 {[%emt 0:00:03]} 3. Nf3 {[%emt 0:00:12]} Bg4 {[%emt 0:00:12]} 4. h3 {[%emt 0:06:35]} Bxf3 {[%emt 0:02:03]} 5. Qxf3 {[%emt 0:00:05]} e6 {[%emt 0:00:07]} 6. b3 {[%emt 0:05:52]} Nf6 {[%emt 0:03:36] B11: Caro-Kann: Two Knights Variation} 7. Bb2 {[%emt 0:00:37]} Nbd7 {[%emt 0:01:11]} 8. exd5 {[%emt 0:01:05]} (8. Qe3 Bd6 9. g3 O-O 10. Bg2 Qb6 11. Qxb6 {½-½ (11) Golubka,P (2484)-Khenkin,I (2565) Bad Homburg 2018}) 8... cxd5 {[%emt 0:00:36]} 9. Bb5 {[%emt 0:06:47]} a6 $146 {[%emt 0:02:10]} ({Predecessor:} 9... Be7 10. O-O O-O 11. d4 Qa5 12. Bd3 Ba3 13. Bxa3 Qxa3 14. Qg3 {0-1 (83) Bengherabi,K (2170)-Laurusas,T (2435) Tromsoe 2014}) 10. Bxd7+ {[%emt 0:06:00]} Qxd7 {[%emt 0:00:13]} 11. g4 {[%emt 0:03:48]} Qc7 {[%emt 0:02:33]} 12. Rc1 {[%emt 0:04:37]} Qe5+ {[%emt 0:02:40]} 13. Qe2 {[%emt 0:09:56]} Qxe2+ {[%emt 0:01:24]} 14. Nxe2 {[%emt 0:00:14]} Be7 {[%emt 0:00:25]} 15. c4 {[%emt 0:04:56]} O-O {[%emt 0:05:22]} (15... dxc4 $15 16. Rxc4 b5) 16. Bxf6 {[%emt 0:06:57]} Bxf6 {[%emt 0:00:04]} 17. cxd5 {[%emt 0:00:23]} exd5 {[%emt 0:00:04]} 18. Rc7 {[%emt 0:00:32]} b5 {[%emt 0:00:15]} 19. Rc5 {[%emt 0:07:25]} Rfd8 {[%emt 0:02:25]} 20. O-O {[%emt 0:04:28]} Be7 {[%emt 0:07:17]} 21. Rc7 {[%emt 0:02:24]} Ba3 {[%emt 0:00:58]} 22. Nc3 {[%emt 0:06:25]} Bd6 {[%emt 0:03:28]} 23. Rc6 {[%emt 0:00:40]} Bb4 {[%emt 0:00:40]} 24. Rc1 {[%emt 0:02:49]} Ba3 {[%emt 0:02:39]} 25. Re1 {[%emt 0:03:16]} d4 {[%emt 0:04:47]} 26. Nb1 {[%emt 0:01:15]} Bb4 {[%emt 0:00:26]} 27. Kg2 {[%emt 0:00:15]} a5 {[%emt 0:07:32]} 28. a3 {[%emt 0:02:29]} (28. d3 $2 {[%emt 0:02:07][%mdl 8192]}) (28. Re5 $11) 28... Bf8 {[%emt 0:03:28]} 29. d3 {[%emt 0:00:08]} Rd5 {[%emt 0:01:32]} 30. Re2 {[%emt 0:01:31]} h5 {[%emt 0:01:05]} 31. Rec2 {[%emt 0:00:32]} hxg4 {[%emt 0:00:16]} 32. hxg4 {[%emt 0:00:05]} f6 {[%emt 0:05:35]} 33. Rc8 {[%emt 0:01:18]} Ra7 {[%emt 0:01:14]} 34. Rb8 {[%emt 0:00:58]} Kf7 {[%emt 0:00:19]} 35. a4 {[%emt 0:00:36]} bxa4 {[%emt 0:00:12]} 36. bxa4 {[%emt 0:00:03]} Bb4 {[%emt 0:01:05]} 37. Nd2 {[%emt 0:00:35]} Bxd2 {[%emt 0:09:22]} 38. Rxd2 {[%emt 0:00:27]} Rc7 {[%emt 0:00:02]} 39. Kf3 {[%emt 0:02:21]} Rc3 {[%emt 0:03:27]} 40. Ke4 {[%emt 0:00:24]} Re5+ {[%emt 0:00:39]} 41. Kxd4 {[%emt 0:00:18]} Ra3 {[%emt 0:00:06]} 42. Rc2 {[%emt 0:00:18]} Rxa4+ {[%emt 0:00:09]} 43. Rc4 {[%emt 0:00:14]} Ra2 {[%emt 0:00:23]} 44. Rc7+ {[%emt 0:00:53]} Re7 {[%emt 0:04:07]} 45. Rxe7+ {[%emt 0:00:29]} Kxe7 {[%emt 0:00:00]} 46. Rb7+ {[%emt 0:00:23]} Ke6 {[%emt 0:00:14]} 47. Rb6+ {[%emt 0:02:18]} Ke7 {[%emt 0:00:47]} 48. f3 {[%emt 0:00:34]} Ra4+ {[%emt 0:06:04]} 49. Ke3 {[%emt 0:00:19]} g6 {[%emt 0:00:45]} 50. g5 {[%emt 0:01:50]} fxg5 {[%emt 0:02:43]} 51. Rxg6 {[%emt 0:00:15]} Rb4 {[%emt 0:00:11]} 52. Rxg5 {[%emt 0:00:16]} a4 {[%emt 0:00:05]} 53. Ra5 {[%emt 0:00:17]} Kd6 {[%emt 0:00:18]} 54. d4 {[%emt 0:00:13]} Rb3+ {[%emt 0:01:55]} 55. Ke4 {[%emt 0:00:03]} a3 {[%emt 0:00:03]} (55... Ra3 $11 {keeps the balance.}) 56. Ra6+ {[%emt 0:00:19]} Kd7 {[%emt 0:00:27]} 57. f4 {[%emt 0:00:06]} Kc7 $2 {[%emt 0:00:16]} (57... Ke7 $16 58. Ra7+ Kf6) 58. f5 {[%emt 0:00:09]} Kb7 {[%emt 0:00:15]} 59. Ra4 {[%emt 0:01:13]} Kc6 {[%emt 0:00:05]} 60. f6 {[%emt 0:00:39]} Kd7 {[%emt 0:00:51]} 61. Ke5 {[%emt 0:00:53]} (61. d5 $142 Rb6 62. Kf5 (62. Rxa3 Rxf6 63. Ke5 Rf1 $16)) 61... Re3+ {[%emt 0:00:39]} 62. Kd5 {[%emt 0:00:22]} Rf3 {[%emt 0:00:39]} 63. Ra7+ {[%emt 0:00:20]} Ke8 {[%emt 0:00:14]} 64. Ke5 {[%emt 0:00:55]} Re3+ {[%emt 0:00:14] [#]} 65. Kf4 $1 {[%emt 0:00:40]} Rb3 {[%emt 0:04:34]} 66. d5 {[%emt 0:00:23]} Rd3 {[%emt 0:01:08] [#]} 67. Ke4 $1 {[%emt 0:00:25]} Rh3 {[%emt 0:01:08]} 68. d6 {[%emt 0:01:32]} a2 {[%emt 0:05:47]} 69. Rxa2 {[%emt 0:02:08]} Kd7 {[%emt 0:00:34]} 70. f7 {[%emt 0:01:28]} Rh8 {[%emt 0:00:30]} 71. Rf2 {[%emt 0:00:22]} Rf8 {[%emt 0:00:13]} 72. Ke5 {[%emt 0:00:17]} Kd8 {[%emt 0:00:39]} 73. Ke6 {[%emt 0:00:24]} Kc8 {[%emt 0:00:15]} 1-0

[Event "3rd HoliCup Lake City 2019"]
[Site "Udaipur"]
[Date "2019.03.31"]
[Round "7.17"]
[White "Pandey, Srishti"]
[Black "Rawal, Shailesh"]
[Result "1/2-1/2"]
[ECO "E15"]
[WhiteElo "2020"]
[BlackElo "1716"]
[Annotator "NA RC"]
[PlyCount "89"]
[EventDate "2019.??.??"]
[EventCountry "IND"]
[SourceTitle "playchess.com"]
[Source "ChessBase"]
[SourceQuality "1"]
[TimeControl "5400+30"]

{[%evp 26,89,39,14,36,25,35,19,22,22,27,18,36,35,29,24,26,34,27,18,24,27,17,0,8,5,16,0,0,0,6,0,0,-44,-34,-61,-61,-52,-60,-88,-61,-73,-95,-157,-136,-142,-148,-119,-182,-310,-362,-493,-113,-124,0,-478,-554,-472,0,0,0,0,0,0,0,0]} 1. d4 {[%emt 0:03:59]} Nf6 {[%emt 0:00:00]} 2. c4 {[%emt 0:00:32]} e6 {[%emt 0:00:00]} 3. Nf3 {[%emt 0:00:14]} b6 {[%emt 0:00:01]} 4. g3 {[%emt 0:00:38]} Bb7 {[%emt 0:00:07]} 5. Bg2 {[%emt 0:00:04]} g6 {[%emt 0:00:21]} 6. O-O {[%emt 0:00:52]} Bg7 {[%emt 0:00:02]} 7. Nc3 {[%emt 0:00:05]} Ne4 {[%emt 0:00:13] E16: Queen's Indian: 4 g3 Bb7 5 Bg2 Bb4+} (7... O-O 8. d5 exd5 9. cxd5 Re8 10. Nd4 c5 11. Ndb5 d6 12. Bf4 Bf8 13. a4 a6 14. Na3 Nh5 15. Bd2 Nd7 {1-0 (47) Ponomariov,R (2686)-Hou,Y (2658) Shenzhen 2018}) 8. Qd3 {[%emt 0:04:31]} Nxc3 {[%emt 0:00:18]} 9. Qxc3 {[%emt 0:02:41]} O-O {[%emt 0:00:24]} 10. Bg5 {[%emt 0:07:40]} Qc8 {[%emt 0:00:19]} 11. Qd2 {[%emt 0:02:20]} d6 {[%emt 0:01:03]} 12. d5 {[%emt 0:02:06]} e5 {[%emt 0:01:10]} 13. e4 $146 {[%emt 0:00:51]} ({Predecessor:} 13. Bh6 a5 14. e4 Na6 15. Nh4 {½-½ (32) Van de Mortel,J (2410)-Welling,G (2364) Germany 2001}) 13... a5 {[%emt 0:02:41]} 14. h4 {[%emt 0:10:52]} h5 {[%emt 0:05:29]} 15. Kh2 {[%emt 0:09:04]} Qe8 {[%emt 0:01:24]} 16. Ne1 {[%emt 0:08:36]} Bc8 {[%emt 0:04:30]} 17. Nd3 {[%emt 0:03:14]} Kh7 {[%emt 0:02:36]} 18. Be3 {[%emt 0:01:21]} f5 {[%emt 0:05:03]} 19. f4 {[%emt 0:00:38]} fxe4 {[%emt 0:05:37]} 20. Nf2 {[%emt 0:00:17]} Bf5 {[%emt 0:05:28]} 21. Bxe4 {[%emt 0:04:06]} Nd7 {[%emt 0:12:52]} 22. Rae1 {[%emt 0:06:14]} Bh6 {[%emt 0:11:18]} 23. Bxf5 {[%emt 0:08:22]} Rxf5 {[%emt 0:03:14]} 24. Ne4 {[%emt 0:01:04]} Qf8 {[%emt 0:09:46]} 25. Kg2 {[%emt 0:01:41]} Re8 {[%emt 0:03:08]} 26. Ng5+ {[%emt 0:07:59]} Bxg5 $1 {[%emt 0:01:52]} 27. fxg5 {[%emt 0:00:06]} Qf7 {[%emt 0:05:09]} 28. Rxf5 {[%emt 0:02:47]} Qxf5 {[%emt 0:00:38]} 29. Rf1 {[%emt 0:00:40]} Qe4+ {[%emt 0:00:09]} 30. Kh2 {[%emt 0:00:10]} Rf8 {[%emt 0:01:21]} 31. Rxf8 {[%emt 0:00:50]} Nxf8 {[%emt 0:00:02]} 32. Qf2 {[%emt 0:01:26]} Kg8 {[%emt 0:01:22]} 33. b3 {[%emt 0:01:03]} a4 {[%emt 0:00:55]} 34. Bc1 {[%emt 0:02:39]} (34. Qd2 $1 $15) 34... axb3 {[%emt 0:00:29]} 35. axb3 {[%emt 0:00:11]} Qd3 {[%emt 0:03:43]} 36. Qe3 {[%emt 0:00:53]} Qc2+ {[%emt 0:02:36]} 37. Kh3 {[%emt 0:00:31] [#]} (37. Bd2 {was worth a try.}) 37... Nd7 $1 {[%emt 0:00:24]} 38. Ba3 {[%emt 0:01:49]} Qd1 {[%emt 0:00:54]} 39. Kg2 {[%emt 0:00:43]} Qc2+ {[%emt 0:00:54]} ({Black should try} 39... Qb1 $17 40. Bb4 Qb2+ 41. Kg1 Qc2) 40. Kh3 $1 {[%emt 0:00:52]} e4 {[%emt 0:01:30]} 41. Qf4 {[%emt 0:04:07]} Ne5 $2 {[%emt 0:03:54]} ({Black should play} 41... Qb1 $19 {[%cal Rb1h1]} 42. Bc1 Qxb3 43. Qxe4 Ne5) 42. Qf6 {[%emt 0:00:40]} e3 {[%emt 0:03:39]} 43. Qd8+ {[%emt 0:00:10]} Kg7 {[%emt 0:00:32]} 44. Qf6+ {[%emt 0:00:06]} Kg8 {[%emt 0:00:10]} 45. Qd8+ $11 {[%emt 0:00:05]} 1/2-1/2